bitfinex-derivatives/quotes_ETHF0:USTF0_20260128
["timestamp","ask_amount","ask_price","bid_price","bid_amount"]
[1769639745540,3.25621928,3013.1,3012.5,0.13739817]
[1769639745735,3.25621928,3013.0,3012.5,0.13739817]
[1769639745935,0.00253636,3013.2,3012.5,0.13739817]
[1769639746236,3.25618507,3013.1,3012.5,0.13739817]
[1769639746431,3.25618507,3013.0,3012.5,0.13739817]
[1769639746640,0.14517008,3013.2,3012.5,0.13739817]
[1769639746840,3.256201,3013.1,3012.5,0.13739817]
[1769639747043,3.256201,3013.0,3012.5,0.13739817]
[1769639747240,0.14517008,3013.2,3012.5,0.13739817]
[1769639747440,3.25619747,3013.1,3012.5,0.13739817]
[1769639747640,3.25619747,3013.0,3012.5,0.13739817]
[1769639747938,0.14517008,3013.2,3012.5,0.13739817]
[1769639748140,3.25459249,3013.1,3012.5,0.13739817]
[1769639748340,3.25459249,3013.0,3012.5,0.13739817]
[1769639748640,0.14517008,3013.2,3012.5,0.13739817]
[1769639748840,3.2546196,3013.1,3012.5,0.13739817]
[1769639749045,3.2546196,3013.0,3012.5,0.13739817]
[1769639749242,0.14263372,3012.7,3012.0,0.13444129]
[1769639760351,0.14263372,3012.7,3011.9,0.00322572]
[1769639760352,0.14263372,3012.7,3011.9,0.15121966]
[1769639762251,2.11418914,3013.1,3012.1,0.14799394]
[1769639762551,3.2513911,3013.0,3012.1,0.14799394]
[1769639762750,3.2513911,3012.9,3012.1,0.14799394]
[1769639762952,0.13439696,3013.1,3012.1,0.14799394]
[1769639763248,3.38576127,3013.0,3012.1,0.14799394]
[1769639763449,0.13693332,3013.2,3012.3,0.14799394]
[1769639763752,3.25152046,3013.1,3012.3,0.14799394]
[1769639763940,0.13693332,3013.2,3012.3,0.14799394]
[1769639764144,3.2514974,3013.1,3012.3,0.14799394]
[1769639764350,0.13693332,3013.2,3012.3,0.14799394]
[1769639764544,0.13693332,3013.2,3012.5,0.14799394]
[1769639764545,3.25154149,3013.1,3012.5,0.14799394]
[1769639764749,0.13693332,3013.2,3012.5,0.14799394]
[1769639765146,0.00253636,3013.2,3012.5,0.14799394]
[1769639768555,2.11418914,3013.6,3012.5,0.14799394]
[1769639768750,3.25137907,3013.5,3012.5,0.14799394]
[1769639768951,3.25137907,3013.4,3012.5,0.14799394]
[1769639769250,0.13439696,3013.6,3012.5,0.14799394]
[1769639769451,3.25088777,3013.5,3012.5,0.14799394]
[1769639769652,3.25088777,3013.4,3012.5,0.14799394]
[1769639771456,0.00298819,3013.5,3012.5,0.14799394]
[1769639772955,0.13738515,3013.5,3012.5,0.14799394]
[1769639775863,0.00298819,3013.5,3012.5,0.14799394]
[1769639776965,0.13738515,3013.5,3012.5,0.14799394]
[1769639779568,0.13738515,3013.5,3012.5,0.31420394]
[1769639779871,0.13738515,3013.5,3012.6,0.14799394]
[1769639779872,0.00298819,3013.5,3012.6,0.14799394]
[1769639781465,44.78513762,3014.3,3012.5,2.078]
[1769639781466,2.11418914,3014.3,3013.1,0.14799394]
[1769639781667,3.24524994,3014.2,3013.1,0.14799394]
[1769639781867,2.11418914,3014.3,3013.1,0.14799394]
[1769639781868,0.13439696,3014.3,3013.1,0.14799394]
[1769639782065,3.24557142,3014.2,3013.1,0.14799394]
[1769639782268,0.00249095,3014.2,3013.1,0.14799394]
[1769639788880,0.00249095,3014.2,3013.1,0.31416394]
[1769639789081,0.00249095,3014.2,3013.2,0.14174133]
[1769639789581,0.00249095,3014.2,3013.2,0.30791133]
[1769639789785,0.00249095,3014.2,3013.3,0.14174133]
[1769639789979,0.142536,3014.7,3013.5,0.14174133]
[1769639790985,0.14646668,3014.7,3013.5,0.14174133]
[1769639792783,0.00393068,3014.7,3013.5,0.14174133]
[1769639794181,0.00393068,3014.7,3013.5,0.14174133]
[1769639804091,0.00393068,3014.7,3013.5,0.30789133]
[1769639804291,0.00393068,3014.7,3013.6,0.14174133]
[1769639807092,0.14646668,3014.7,3013.6,0.14174133]
[1769639807686,0.14646668,3014.7,3013.6,2.20274133]
[1769639808087,0.14646668,3014.7,3013.7,0.14174133]
[1769639818504,0.14525217,3014.5,3013.7,0.14174133]
[1769639819604,0.00393068,3014.7,3013.7,0.14174133]
[1769639819803,3.25427794,3014.6,3013.7,0.14174133]
[1769639820103,0.00393068,3014.7,3013.7,0.14174133]
[1769639820400,3.25428269,3014.6,3013.7,0.14174133]
[1769639820601,0.00393068,3014.7,3013.7,0.14174133]
[1769639821907,0.14525217,3014.6,3013.6,2.061]
[1769639822210,0.14525217,3014.3,3013.1,0.14363448]
[1769639822404,3.25344612,3014.2,3013.1,0.14363448]
[1769639822702,0.14525217,3014.2,3013.1,0.14363448]
[1769639823808,0.14525217,3014.4,3013.1,0.14363448]
[1769639829614,0.14525217,3014.4,3013.3,0.14363448]
[1769639833329,0.14525217,3014.4,3013.4,1.05876396]
[1769639833522,0.14525217,3014.4,3013.5,0.14363448]
[1769639834122,0.14525217,3014.6,3013.5,0.14363448]
[1769639834320,0.14525217,3014.4,3013.5,0.14363448]
[1769639836420,0.14525217,3014.6,3013.7,0.14363448]
[1769639837227,3.25217055,3014.5,3013.7,0.14363448]
[1769639837525,0.14525217,3014.6,3013.7,0.14363448]
[1769639838026,3.32151373,3014.5,3013.7,0.14363448]
[1769639838225,0.14525217,3014.6,3013.7,0.14363448]
[1769639838424,3.32160579,3014.5,3013.7,0.14363448]
[1769639838724,0.14525217,3014.6,3013.7,0.14363448]
[1769639838926,3.32160671,3014.5,3013.7,0.14363448]
[1769639839221,0.14525217,3014.6,3013.7,0.14363448]
[1769639839421,3.32170367,3014.5,3013.7,0.14363448]
[1769639839623,0.14525217,3014.6,3013.7,0.14363448]
[1769639839824,3.32170319,3014.5,3013.7,0.14363448]
[1769639840019,0.14525217,3014.6,3013.7,0.14363448]
[1769639840222,3.32170384,3014.5,3013.7,0.14363448]
[1769639840422,0.14525217,3014.6,3013.7,0.14363448]
[1769639840629,3.32184155,3014.5,3013.7,0.14363448]
[1769639840832,0.14525217,3014.6,3013.7,0.14363448]
[1769639841015,3.32184221,3014.5,3013.7,0.14363448]
[1769639841328,0.14525217,3014.6,3013.7,0.14363448]
[1769639841730,0.14525217,3014.6,3013.8,0.14363448]
[1769639852733,0.14525217,3014.6,3013.9,0.14250447]
[1769639853039,0.00393068,3014.7,3013.9,0.14250447]
[1769639855039,0.00393068,3014.7,3014.1,0.14250447]
[1769639855338,0.13938367,3015.0,3014.1,0.14250447]
[1769639856255,0.14189512,3015.0,3014.1,0.14585718]
[1769639865153,0.00251145,3015.0,3014.1,0.14585718]
[1769639868160,0.00251145,3015.0,3014.3,0.14250447]
[1769639868462,0.13938367,3015.2,3014.3,0.14250447]
[1769639869560,0.14199263,3015.2,3014.3,0.14250447]
[1769639880672,0.14199263,3015.2,3014.1,0.16947271]
[1769639880869,0.14046317,3014.8,3014.1,0.00335271]
[1769639881166,0.14046317,3014.6,3014.0,2.077]
[1769639882072,0.14046317,3014.6,3014.0,2.08003264]
[1769639882972,0.14046317,3014.8,3014.1,0.13673331]
[1769639883378,0.14046317,3015.1,3014.1,0.13673331]
[1769639891779,0.14046317,3015.1,3014.0,0.00303264]
[1769639891780,0.14046317,3015.1,3014.0,2.08703264]
[1769639898290,0.14046317,3015.1,3014.0,2.22376595]
[1769639904595,0.14046317,3015.1,3014.1,0.13673331]
[1769639919910,0.00260896,3015.2,3014.1,0.13673331]
[1769639920112,3.25261086,3015.1,3014.1,0.13673331]
[1769639920303,0.13588931,3015.2,3014.1,0.13673331]
[1769639920499,3.25251234,3015.1,3014.1,0.13673331]
[1769639920710,0.13588931,3015.2,3014.1,0.13673331]
[1769639920912,3.2524619,3015.1,3014.1,0.13673331]
[1769639921208,0.13588931,3015.2,3014.1,0.13673331]
[1769639921408,3.25247402,3015.1,3014.1,0.13673331]
[1769639921609,0.13588931,3015.2,3014.1,0.13673331]
[1769639921909,3.25241376,3015.1,3014.1,0.13673331]
[1769639922108,0.13588931,3015.2,3014.1,0.13673331]
[1769639922310,3.25231747,3015.1,3014.1,0.13673331]
[1769639922510,0.13588931,3015.2,3014.1,0.13673331]
[1769639922706,3.25224972,3015.1,3014.1,0.13673331]
[1769639922911,0.13588931,3015.2,3014.1,0.13673331]
[1769639923110,3.25225973,3015.1,3014.1,0.13673331]
[1769639923309,0.13588931,3015.2,3014.1,0.13673331]
[1769639923511,3.25231984,3015.1,3014.1,0.13673331]
[1769639923810,0.13588931,3015.2,3014.1,0.13673331]
[1769639924014,3.25231503,3015.1,3014.1,0.13673331]
[1769639924212,0.13588931,3015.2,3014.1,0.13673331]
[1769639924413,3.25226827,3015.1,3014.1,0.13673331]
[1769639924613,0.13588931,3015.2,3014.1,0.13673331]
[1769639924814,3.25226795,3015.1,3014.1,0.13673331]
[1769639925113,0.13588931,3015.2,3014.1,0.13673331]
[1769639925313,3.25226698,3015.1,3014.1,0.13673331]
[1769639925514,0.13588931,3015.2,3014.1,0.13673331]
[1769639925713,3.25222368,3015.1,3014.1,0.13673331]
[1769639925915,0.13588931,3015.2,3014.1,0.13673331]
[1769639926115,3.25225274,3015.1,3014.1,0.13673331]
[1769639926314,0.13588931,3015.2,3014.1,0.13673331]
[1769639926519,3.25223719,3015.1,3014.1,0.13673331]
[1769639926720,0.13328035,3015.1,3014.1,0.13673331]
[1769639948634,0.00260896,3015.2,3014.1,0.13673331]
[1769639949528,0.00260896,3015.2,3014.5,0.13847641]
[1769639953439,0.14227897,3015.2,3014.3,0.13847641]
[1769639963142,0.00260896,3015.2,3014.3,0.13847641]
[1769639963345,0.00260896,3015.2,3014.5,0.13847641]
[1769639990564,0.1384405,3015.2,3014.5,2.152]
[1769639997880,0.1384405,3015.2,3014.6,0.13408356]
[1769640000276,0.14303551,3014.8,3014.2,0.13408356]
[1769640000581,0.14303551,3014.6,3014.0,2.2971162]
[1769640000787,0.14303551,3015.1,3014.1,0.13408356]
[1769640001174,3.39430908,3015.0,3014.1,0.13408356]
[1769640001480,0.14303551,3015.0,3014.1,0.13408356]
[1769640001681,0.14303551,3015.0,3014.0,2.16303264]
[1769640001881,0.14303551,3014.9,3014.0,0.1371162]
[1769640002082,0.14303551,3014.9,3014.0,2.16503264]
[1769640002287,0.14303551,3014.9,3014.0,2.2991162]
[1769640003376,0.14303551,3014.7,3014.0,2.2991162]
[1769640003683,0.14303551,3014.7,3014.0,2.16503264]
[1769640004070,0.14303551,3014.7,3013.8,2.29708356]
[1769640005074,0.14303551,3014.7,3013.8,2.30116428]
[1769640007783,0.14303551,3014.5,3013.8,0.13816428]
[1769640008478,0.14303551,3014.9,3013.9,0.13408356]
[1769640008682,0.14303551,3014.7,3013.9,0.13408356]
[1769640012582,0.14303551,3014.7,3013.8,0.00408072]
[1769640012884,0.14303551,3014.7,3013.8,0.13816428]
[1769640023390,0.14303551,3015.1,3013.8,0.13816428]
[1769640023593,3.24932957,3015.0,3013.8,0.13816428]
[1769640023794,0.14303551,3015.1,3013.8,0.13816428]
[1769640024092,0.14303551,3014.9,3013.8,0.13816428]
[1769640026092,0.13777844,3015.1,3013.8,1.19679704]
[1769640026287,0.00260896,3015.2,3013.9,0.14116807]
[1769640026492,3.25088416,3015.1,3013.9,0.14116807]
[1769640026795,0.1403874,3015.2,3013.9,0.14116807]
[1769640028295,3.25185846,3015.1,3013.9,0.14116807]
[1769640028495,0.1403874,3015.2,3013.9,0.14116807]
[1769640028893,0.00260896,3015.2,3013.9,0.14116807]
[1769640029698,0.14237693,3015.2,3013.9,0.14116807]
[1769640043096,0.14237693,3015.2,3013.9,3.46216807]
[1769640043393,0.14237693,3015.2,3014.0,0.13809207]
[1769640048103,0.00260896,3015.2,3014.0,0.30421207]
[1769640048307,0.00260896,3015.2,3014.1,0.13809207]
[1769640048806,0.14237693,3015.2,3014.1,0.13809207]
[1769640059113,0.14237693,3015.2,3014.2,0.13825413]
[1769640059915,0.14237693,3015.2,3014.4,0.13825413]
[1769640089549,0.14237693,3015.2,3014.1,1.20252126]
[1769640089750,0.14237693,3015.2,3014.2,2.193]
[1769640090649,0.14237693,3015.2,3014.2,2.33753117]
[1769640092048,0.14237693,3015.2,3014.3,0.14453117]
[1769640093149,0.14237693,3015.2,3014.4,2.2]
[1769640098148,0.14170093,3015.0,3014.1,0.14453117]
[1769640098353,0.14170093,3015.0,3013.9,0.14453117]
[1769640098554,0.14170093,3015.0,3014.2,2.204]
[1769640104961,0.14170093,3015.0,3014.0,0.14453117]
[1769640105159,0.14170093,3015.0,3014.1,2.21]
[1769640106159,0.14170093,3014.8,3014.0,0.14453117]
[1769640106459,0.14170093,3014.8,3014.1,0.14453117]
[1769640108764,0.14170093,3014.8,3013.8,0.00408072]
[1769640109062,0.14170093,3014.8,3013.9,2.212]
[1769640109250,0.14170093,3014.8,3013.9,2.35653117]
[1769640112367,0.14170093,3014.8,3014.0,0.14453117]
[1769640114470,0.14170093,3015.1,3014.0,0.14453117]
[1769640119174,0.14170093,3015.1,3014.0,0.14453117]
[1769640120877,0.14316895,3014.9,3014.0,0.14453117]
[1769640129483,0.14316895,3014.9,3013.9,2.212]
[1769640129981,0.14316895,3014.9,3013.9,2.35809038]
[1769640132685,0.14316895,3014.9,3013.8,0.00408072]
[1769640132984,0.14316895,3014.7,3013.8,0.00408072]
[1769640134084,0.14316895,3014.7,3013.8,0.1501711]
[1769640137087,0.14316895,3014.5,3013.4,0.14609038]
[1769640137388,0.14316895,3014.5,3013.6,0.14609038]
[1769640138194,0.14316895,3014.5,3013.6,0.14900707]
[1769640142201,0.14316895,3014.5,3013.6,0.00291669]
[1769640142493,0.14316895,3014.3,3013.3,0.14609038]
[1769640143497,0.14316895,3014.3,3013.3,0.1488154]
[1769640145100,0.14316895,3014.3,3013.3,0.00272502]
[1769640146788,0.13586736,3014.0,3012.3,0.14267429]
[1769640146991,0.13586736,3013.8,3012.3,2.37167429]
[1769640147299,0.13586736,3013.8,3012.4,0.14267429]
[1769640147898,0.13586736,3013.8,3012.4,0.1453495]
[1769640148197,0.13553634,3013.8,3012.5,0.13640762]
[1769640151804,0.13553634,3013.8,3012.6,0.13640762]
[1769640161616,0.13553634,3013.8,3012.4,0.00267521]
[1769640161826,0.13553634,3013.8,3012.4,0.13908283]
[1769640163820,41.10165634,3014.1,3012.4,0.13908283]
[1769640164020,0.13553634,3013.9,3012.4,0.13908283]
[1769640172023,3.24024862,3013.8,3012.4,0.13908283]
[1769640172221,0.13553634,3013.7,3012.4,0.13908283]
[1769640178032,0.14580872,3013.5,3012.4,0.00267521]
[1769640178224,0.14580872,3013.2,3012.1,0.14665173]
[1769640178530,0.14580872,3013.0,3011.9,0.14665173]
[1769640179228,0.15000501,3013.0,3011.9,0.14939018]
[1769640180331,0.15000501,3013.0,3012.0,2.37265173]
[1769640181334,0.15000501,3013.0,3011.9,0.00273845]
[1769640181634,0.15000501,3013.0,3011.9,2.22973845]
[1769640182633,0.15000501,3013.0,3011.9,2.37639018]
[1769640186335,0.15000501,3013.0,3011.9,0.14939018]
[1769640186628,0.15000501,3013.0,3011.9,0.00273845]
[1769640186822,0.14580872,3012.6,3011.4,0.14665173]
[1769640187235,0.14580872,3012.6,3011.4,2.37565173]
[1769640187738,0.14580872,3012.6,3011.4,2.37943209]
[1769640190328,0.14580872,3012.6,3011.4,0.15043209]
[1769640191025,0.14580872,3012.6,3011.4,0.00378036]
[1769640191434,0.14580872,3012.6,3011.4,0.15043209]
[1769640193737,0.14580872,3012.2,3011.4,0.15043209]
[1769640196439,1.20619067,3011.7,3010.4,0.31298173]
[1769640196638,0.14580872,3011.6,3010.4,0.14665173]
[1769640197538,0.14580872,3011.6,3010.4,0.14954588]
[1769640199437,0.14580872,3011.6,3010.4,2.09854588]
[1769640199632,0.14580872,3011.6,3010.5,0.14665173]
[1769640204242,0.14580872,3011.4,3010.5,0.14665173]
[1769640206740,0.14580872,3011.4,3010.4,0.00289415]
[1769640207042,0.14580872,3011.4,3010.4,0.14153091]
[1769640211244,0.1398709,3011.6,3010.4,0.14153091]
[1769640212141,40.8,3012.0,3010.4,0.14153091]
[1769640212142,0.1398709,3011.4,3010.4,0.14153091]
[1769640215748,0.1398709,3011.2,3010.4,0.14153091]
[1769640227655,3.18350271,3011.6,3010.4,0.14153091]
[1769640227859,29.73586743,3011.8,3010.4,0.14153091]
[1769640227860,3.24132351,3011.5,3010.4,0.14153091]
[1769640228057,1.20025285,3011.7,3010.4,0.14153091]
[1769640228256,3.24127539,3011.6,3010.4,0.14153091]
[1769640228455,3.24127539,3011.5,3010.4,0.14153091]
[1769640228756,0.1398709,3011.6,3010.4,0.14153091]
[1769640228956,4.30725346,3011.5,3010.4,0.14153091]
[1769640229155,1.06038195,3011.5,3010.4,0.14153091]
[1769640230261,1.20025285,3011.5,3010.4,0.14153091]
[1769640230866,3.2473809,3011.4,3010.4,0.14153091]
[1769640231161,0.1398709,3011.2,3010.4,0.14153091]
[1769640233857,1.06038195,3011.3,3010.4,0.14153091]
[1769640234058,3.24792015,3011.2,3010.4,0.14153091]
[1769640234260,1.20025285,3011.3,3010.4,0.14153091]
[1769640238062,0.14407111,3011.2,3010.4,0.14153091]
[1769640239160,1.06038195,3011.3,3010.4,0.14153091]
[1769640239464,1.20445306,3011.3,3010.4,0.14153091]
[1769640239661,0.14407111,3011.2,3010.4,0.00289415]
[1769640240161,1.06038195,3011.1,3010.4,0.00289415]
[1769640240361,0.14407111,3011.0,3010.4,0.00289415]
[1769640241469,0.14407111,3011.0,3010.2,0.13343419]
[1769640241965,1.06038195,3011.1,3010.2,0.13343419]
[1769640242462,1.06038195,3011.1,3010.2,0.13654327]
[1769640242765,0.14407111,3011.0,3010.2,0.13654327]
[1769640243765,1.06038195,3011.1,3010.2,0.13654327]
[1769640244566,1.06038195,3011.3,3010.2,0.13654327]
[1769640245862,1.20445306,3011.3,3010.2,0.13654327]
[1769640246668,0.14407111,3011.2,3010.2,0.13654327]
[1769640261174,0.14407111,3011.2,3010.3,2.34843419]
[1769640261476,0.14407111,3011.2,3010.4,0.13343419]
[1769640280076,3.24483553,3011.1,3010.4,0.13343419]
[1769640280283,1.98081841,3011.6,3010.4,0.13343419]
[1769640280474,3.24524565,3011.5,3010.4,0.13343419]
[1769640280675,3.5673989,3011.4,3010.4,0.13343419]
[1769640280877,0.32215325,3011.4,3010.4,0.13343419]
[1769640288690,0.32215325,3011.6,3010.4,0.13343419]
[1769640289089,0.32215325,3012.0,3010.5,0.33216915]
[1769640289288,0.32215325,3012.0,3010.7,0.33216915]
[1769640290386,0.32215325,3012.2,3010.7,0.33216915]
[1769640290692,3.23936108,3012.1,3010.7,0.33216915]
[1769640290892,0.32215325,3012.2,3010.7,0.33216915]
[1769640291288,0.32215325,3012.2,3010.7,0.49847915]
[1769640291495,0.32215325,3012.2,3010.8,0.33216915]
[1769640293292,0.32215325,3012.2,3010.9,0.33216915]
[1769640293495,0.32215325,3012.2,3011.1,0.33216915]
[1769640297688,0.4964142,3012.7,3011.1,0.33216915]
[1769640297988,0.4964142,3012.5,3011.1,0.33216915]
[1769640300095,0.4964142,3012.5,3011.3,0.51438034]
[1769640309901,0.4964142,3012.7,3011.3,0.51438034]
[1769640310096,0.4964142,3012.7,3011.4,0.51438034]
[1769640312004,0.4964142,3012.7,3011.5,0.51438034]
[1769640312206,0.4964142,3012.9,3011.7,0.51438034]
[1769640312406,0.4964142,3012.9,3011.8,0.51438034]
[1769640317113,0.4964142,3012.9,3011.9,0.51438034]
[1769640318813,0.4964142,3012.9,3012.0,0.51438034]
[1769640319017,0.4964142,3012.9,3012.2,0.51438034]
[1769640319312,0.00419629,3013.0,3012.2,0.51438034]
[1769640324112,0.00419629,3013.0,3012.3,0.51438034]
[1769640325013,0.00419629,3013.0,3012.4,2.86150123]
[1769640325215,0.63189983,3013.1,3012.5,0.64950123]
[1769640326110,0.63517964,3013.1,3012.5,0.6522595]
[1769640326311,0.00327981,3013.1,3012.5,0.6522595]
[1769640328213,0.64870008,3013.5,3012.5,0.6522595]
[1769640328415,1.05972315,3013.6,3012.5,0.6522595]
[1769640328917,1.70842323,3013.6,3012.5,0.6522595]
[1769640329119,1.71261338,3013.6,3012.5,0.6522595]
[1769640329311,0.64870008,3013.5,3012.5,0.6522595]
[1769640331419,0.64870008,3013.5,3012.6,0.63099822]
[1769640339420,0.00419015,3013.6,3012.6,0.63099822]
[1769640340020,0.65289023,3013.6,3012.6,0.63099822]
[1769640340726,0.65289023,3013.6,3012.7,0.63099822]
[1769640343720,0.65289023,3013.6,3012.7,0.79719822]
[1769640344024,0.65289023,3013.6,3012.8,0.63099822]
[1769640346125,0.00419015,3013.6,3012.8,0.63099822]
[1769640348735,0.65289023,3013.6,3012.8,0.63099822]
[1769640348933,0.00419015,3013.6,3012.8,0.63099822]
[1769640353037,0.64870008,3014.1,3012.9,0.63099822]
[1769640353335,0.64870008,3014.1,3013.1,0.63099822]
[1769640353533,0.64870008,3014.1,3013.3,0.63099822]
[1769640354134,0.65136206,3014.1,3013.3,0.63099822]
[1769640361937,0.00266198,3014.1,3013.3,0.63099822]
[1769640368341,0.00266198,3014.1,3013.4,1.05972315]
[1769640368642,0.76678254,3014.4,3013.5,0.74196078]
[1769640369444,0.7700318,3014.4,3013.5,0.74196078]
[1769640370339,0.00324926,3014.4,3013.7,0.74196078]
[1769640377347,0.00324926,3014.4,3013.7,0.68277344]
[1769640398876,0.86008838,3014.8,3013.9,0.83342138]
[1769640399866,0.86405566,3014.8,3013.9,0.83342138]
[1769640411177,0.86405566,3014.8,3014.0,2.292]
[1769640419783,0.86405566,3014.8,3014.0,3.19049974]
[1769640419986,0.86405566,3014.8,3014.1,0.89849974]
[1769640426788,0.00396728,3014.8,3014.1,0.89849974]
[1769640427587,1.97886349,3015.2,3014.1,0.89849974]
[1769640427793,1.97886349,3015.6,3014.3,0.89849974]
[1769640428090,0.82555692,3015.6,3014.3,0.89849974]
[1769640428591,0.82951287,3015.6,3014.3,0.89849974]
[1769640438497,0.82951287,3015.6,3014.3,4.21949974]
[1769640438694,0.82951287,3015.6,3014.4,0.89849974]
[1769640439694,0.82951287,3015.6,3014.8,1.95629239]
[1769640439996,0.82951287,3015.6,3014.9,0.89849974]
[1769640450300,0.86110623,3015.6,3014.9,0.89849974]
[1769640450599,0.00395595,3015.6,3014.9,0.89849974]
[1769640453094,0.86110623,3015.6,3014.9,0.89849974]
[1769640465609,0.00395595,3015.6,3014.9,0.89849974]
[1769640477011,0.00395595,3015.6,3014.9,1.95629239]
[1769640477210,0.00395595,3015.6,3015.0,0.9190961]
[1769640481915,0.96799081,3016.3,3015.0,0.9190961]
[1769640482115,0.96799081,3016.1,3015.0,0.9190961]
[1769640482819,0.97130032,3016.1,3015.0,0.9190961]
[1769640485015,0.97130032,3016.1,3015.1,3.2600961]
[1769640485221,0.97130032,3016.1,3015.2,0.9190961]
[1769640489229,0.97130032,3016.1,3015.4,0.9190961]
[1769640495224,0.00330951,3016.1,3015.4,0.9190961]
[1769640577530,1.97794698,3016.7,3015.6,0.98194673]
[1769640577724,2.14392698,3016.8,3015.7,0.98194673]
[1769640578026,3.1936569,3016.7,3015.7,0.98194673]
[1769640578224,3.1936569,3016.6,3015.7,0.98194673]
[1769640578425,1.97794698,3016.8,3015.7,0.98194673]
[1769640578724,4.18287963,3016.8,3016.1,0.98194673]
[1769640578929,3.19353943,3016.7,3016.1,0.98194673]
[1769640579124,0.9893402,3016.8,3016.1,0.98194673]
[1769640583032,0.9893402,3016.8,3015.6,1.05725224]
[1769640583230,0.98628522,3016.7,3015.6,1.05725224]
[1769640583543,0.98628522,3016.7,3015.6,2.03919897]
[1769640583728,0.98628522,3016.7,3015.7,0.98194673]
[1769640602450,0.00305498,3016.8,3016.1,0.95540259]
[1769640602646,0.00305498,3016.8,3016.3,0.95540259]
[1769640603150,0.93904533,3016.8,3016.3,0.95540259]
[1769640603453,0.93904533,3016.8,3016.2,2.449]
[1769640608164,0.00305498,3016.8,3016.3,0.95540259]
[1769640608561,0.93904533,3016.8,3016.2,2.449]
[1769640615472,0.00305498,3016.8,3016.3,0.95540259]
[1769640633589,0.00305498,3016.8,3016.4,1.00843785]
[1769640645797,0.95787194,3017.3,3016.4,1.00843785]
[1769640645992,3.2099477,3017.2,3016.4,1.00843785]
[1769640646193,3.2099477,3017.1,3016.4,1.00843785]
[1769640646393,2.93581892,3017.4,3016.4,1.00843785]
[1769640646695,3.21052708,3017.3,3016.4,1.00843785]
[1769640646996,3.21052708,3017.2,3016.4,1.00843785]
[1769640647299,3.21052708,3017.1,3016.4,1.00843785]
[1769640647495,0.0036536,3017.3,3016.4,1.00843785]
[1769640647695,3.21055713,3017.2,3016.4,1.00843785]
[1769640647894,3.21055713,3017.1,3016.4,1.00843785]
[1769640648097,0.0036536,3017.3,3016.4,1.00843785]
[1769640648292,3.2105538,3017.2,3016.4,1.00843785]
[1769640648494,3.2105538,3017.1,3016.4,1.00843785]
[1769640648697,1.98160058,3017.3,3016.4,1.00843785]
[1769640649194,6.15565351,3017.3,3016.4,1.00843785]
[1769640649397,3.21618099,3017.2,3016.4,1.00843785]
[1769640652792,4.17770653,3017.3,3016.4,1.00843785]
[1769640652998,3.21618099,3017.2,3016.4,1.00843785]
[1769640661003,4.21911183,3017.2,3016.4,1.00843785]
[1769640661204,1.00293084,3017.2,3016.4,1.00843785]
[1769640661805,3.21726671,3017.1,3016.4,1.00843785]
[1769640662000,1.00293084,3017.2,3016.4,1.00843785]
[1769640663598,3.21758684,3017.1,3016.4,1.00843785]
[1769640663805,0.0036536,3017.3,3016.4,1.00843785]
[1769640664003,3.21759993,3017.2,3016.4,1.00843785]
[1769640664203,0.0036536,3017.3,3016.4,1.00843785]
[1769640664504,3.21756436,3017.2,3016.4,1.00843785]
[1769640664702,1.00293084,3017.2,3016.4,1.00843785]
[1769640666307,1.00293084,3017.2,3016.4,2.036]
[1769640666705,3.21745374,3017.1,3016.4,2.036]
[1769640666906,1.00293084,3017.1,3016.4,2.513]
[1769640669310,1.00293084,3017.1,3016.2,0.99576221]
[1769640669506,1.00293084,3016.9,3016.3,2.515]
[1769640670106,1.00293084,3016.9,3016.1,2.515]
[1769640670406,1.00293084,3016.9,3016.0,0.99576221]
[1769640670605,1.00293084,3016.9,3016.0,3.51176221]
[1769640671611,1.00293084,3016.9,3016.0,0.99576221]
[1769640673508,3.21377415,3016.8,3015.5,6.96903631]
[1769640673719,1.97794698,3016.1,3015.2,0.99576221]
[1769640674015,1.00293084,3016.0,3015.2,0.99576221]
[1769640676227,1.00293084,3016.0,3015.0,1.946]
[1769640678424,1.00293084,3016.0,3015.0,0.99576221]
[1769640682728,1.00293084,3016.0,3014.8,0.00272242]
[1769640684326,1.00293084,3016.0,3014.8,0.99848463]
[1769640685628,1.0291654,3015.9,3014.8,0.99848463]
[1769640694033,1.0291654,3015.9,3015.0,1.01087924]
[1769640703134,1.0221925,3015.7,3015.0,1.01087924]
[1769640720350,1.0221925,3015.7,3014.8,1.03027738]
[1769640740870,1.98088757,3015.9,3014.8,1.03027738]
[1769640741076,3.22132603,3015.8,3014.8,1.03027738]
[1769640741269,3.22132603,3015.7,3014.8,1.03027738]
[1769640741473,1.98098455,3015.9,3014.8,1.03027738]
[1769640741771,3.22168372,3015.8,3014.8,1.03027738]
[1769640741971,3.22168372,3015.7,3014.8,1.03027738]
[1769640742176,3.01341131,3015.9,3014.8,1.03027738]
[1769640742367,3.22229009,3015.8,3014.8,1.03027738]
[1769640742664,3.22229009,3015.7,3014.8,1.03027738]
[1769640742865,3.01341131,3015.9,3014.8,1.03027738]
[1769640743066,3.22234785,3015.8,3014.8,1.03027738]
[1769640743268,3.22234785,3015.7,3014.8,1.03027738]
[1769640743469,3.01341131,3015.9,3014.8,1.03027738]
[1769640743669,3.22247498,3015.8,3014.8,1.03027738]
[1769640743872,3.22247498,3015.7,3014.8,1.03027738]
[1769640744077,3.01341131,3015.9,3015.0,1.02755496]
[1769640744270,3.22253684,3015.8,3015.0,1.02755496]
[1769640744574,3.22253684,3015.7,3015.0,1.02755496]
[1769640744775,1.03242676,3015.8,3015.0,1.02755496]
[1769640744974,3.22289751,3015.7,3015.0,1.02755496]
[1769640745169,1.03242676,3015.8,3015.0,1.02755496]
[1769640745370,3.22292239,3015.7,3015.0,1.02755496]
[1769640745573,1.03242676,3015.8,3015.0,1.02755496]
[1769640745774,3.22292699,3015.7,3015.0,1.02755496]
[1769640745976,1.03242676,3015.8,3015.0,1.02755496]
[1769640746175,3.22293464,3015.7,3015.0,1.02755496]
[1769640746370,1.03242676,3015.8,3015.0,1.02755496]
[1769640746578,4.34674824,3015.7,3015.0,1.02755496]
[1769640746778,1.12381202,3015.7,3015.0,1.02755496]
[1769640747770,1.98098455,3016.0,3015.0,1.02755496]
[1769640747977,3.22308617,3015.9,3015.0,1.02755496]
[1769640748278,1.98098455,3016.4,3015.0,1.02755496]
[1769640748970,9.43261987,3016.5,3015.0,1.02755496]
[1769640749577,9.43261987,3016.5,3015.3,0.62739949]
[1769640749777,9.43261987,3016.5,3015.5,0.62739949]
[1769640749981,7.45163532,3016.5,3015.5,0.62739949]
[1769640750176,1.11963532,3016.4,3015.5,0.62739949]
[1769640753077,1.11963532,3016.4,3015.4,2.508]
[1769640754180,1.11963532,3016.4,3015.2,3.55968459]
[1769640755579,1.11963532,3016.4,3015.2,2.502]
[1769640758282,1.11963532,3016.4,3015.1,0.60894541]
[1769640760282,1.11963532,3016.2,3015.1,0.60894541]
[1769640774190,1.11963532,3016.0,3014.8,0.49739268]
[1769640774486,1.11963532,3016.0,3014.9,2.51]
[1769640774892,1.11963532,3016.0,3014.8,0.00272242]
[1769640775188,1.11963532,3016.0,3014.8,2.51272242]
[1769640775382,1.11963532,3016.0,3014.8,2.91021483]